[Event "1st Henriquez Urena Memorial 2022"]
[Site "Santo Domingo"]
[Date "2022.09.16"]
[Round "1.1"]
[White "Dominguez, Jose Manuel"]
[Black "Peralta, Fernando"]
[Result "0-1"]
[ECO "C01"]
[WhiteElo "2180"]
[BlackElo "2600"]
[Annotator "ChessBase"]
[PlyCount "61"]
[EventDate "2022.09.16"]
[EventType "swiss"]
[EventCountry "DOM"]
[SourceTitle "playchess.com"]
[Source "ChessBase"]
[SourceQuality "1"]
[TimeControl "5400+30"]

1. e4 e6 2. d4 d5 3. Nc3 Nf6 4. exd5 exd5 5. Bd3 c5 6. dxc5 Bxc5 7. Nf3 O-O 8. O-O h6 9. h3 Nc6 10. a3 a6 11. Bf4 Re8 12. Re1 Be6 13. Qd2 Rc8 14. Rad1 Bf8 15. Ne5 Na5 16. b4 Nc4 17. Bxc4 dxc4 18. Qe2 Qe7 19. Qf3 g5 20. Bg3 Bg7 21. Na4 {[%emt 0:45:51]} Rcd8 {[%emt 0:10:20]} 22. Nc5 {[%emt 0:00:30]} Bd5 {[%emt 0:00:30]} 23. Qf5 {[%emt 0:00:30]} b6 {[%emt 0:00:30]} 24. Na4 {[%emt 0:00:30]} Qb7 {[%emt 0:00:30]} 25. Ng4 {[%emt 0:00:30]} Rxe1+ {[%emt 0:00:30]} 26. Rxe1 {[%emt 0:00:30]} Nxg4 {[%emt 0:00:30]} 27. Qxg4 {[%emt 0:00:30]} Bxg2 {[%emt 0:00:30]} 28. Bc7 {[%emt 0:00:30]} Bf3 {[%emt 0:00:30]} 29. Qg3 {[%emt 0:00:30]} Qe4 {[%emt 0:00:30]} 30. Rf1 {[%emt 0:00:30]} Rd1 {[%emt 0:00:30]} 31. Bxb6 {[%emt 0:00:30]} 0-1

[Event "1st Henriquez Urena Memorial 2022"]
[Site "Santo Domingo"]
[Date "2022.09.16"]
[Round "1.2"]
[White "Quezada Perez, Yasser"]
[Black "Arvelo Leo, Gian Carlo"]
[Result "1-0"]
[ECO "B30"]
[WhiteElo "2580"]
[BlackElo "2174"]
[Annotator "ChessBase"]
[PlyCount "67"]
[EventDate "2022.09.16"]
[EventType "swiss"]
[EventCountry "DOM"]
[SourceTitle "playchess.com"]
[Source "ChessBase"]
[SourceQuality "1"]
[TimeControl "5400+30"]

1. e4 c5 2. Nf3 e6 3. Nc3 Nc6 4. Bb5 Nd4 5. Bc4 Nf6 6. O-O d6 7. d3 Be7 8. Nxd4 cxd4 9. Ne2 e5 10. Ng3 O-O 11. f4 exf4 12. Bxf4 d5 13. Bb3 dxe4 14. dxe4 Be6 15. Nf5 Nxe4 16. Nxg7 Kxg7 17. Bxe6 fxe6 18. Qg4+ Kh8 19. Bh6 Rg8 20. Qxe4 Rg6 21. Bf4 Kg8 22. Be5 Rc8 23. Bxd4 Qd5 24. Qxd5 exd5 25. c3 Bc5 26. Rad1 b6 27. Rf5 Rd6 28. Rg5+ Kf8 29. Rf1+ Ke8 30. Rg8+ Kd7 31. Rf7+ Ke6 32. Rf6+ Ke7 33. Rg7+ Kd8 34. Rxd6+ 1-0

[Event "1st Henriquez Urena Memorial 2022"]
[Site "Santo Domingo"]
[Date "2022.09.16"]
[Round "1.3"]
[White "Crispin Ferreras, Darvi Abraham"]
[Black "Ramirez, Alejandro"]
[Result "0-1"]
[ECO "A06"]
[WhiteElo "2160"]
[BlackElo "2561"]
[Annotator "ChessBase"]
[PlyCount "76"]
[EventDate "2022.09.16"]
[EventType "swiss"]
[EventCountry "DOM"]
[SourceTitle "playchess.com"]
[Source "ChessBase"]
[SourceQuality "1"]
[TimeControl "5400+30"]

1. Nf3 {[%emt 0:00:30]} d5 {[%emt 1:31:00]} 2. b3 {[%emt 0:00:30]} c5 {[%emt 0:00:30]} 3. e3 {[%emt 0:00:30]} Nc6 {[%emt 0:00:30]} 4. Bb2 {[%emt 0:00:30]} a6 {[%emt 0:00:30]} 5. d4 {[%emt 0:00:30]} Nf6 {[%emt 0:00:30]} 6. Be2 {[%emt 0:00:30]} Bg4 {[%emt 0:00:30]} 7. Nbd2 {[%emt 0:00:30]} Rc8 {[%emt 0:00:30]} 8. a3 {[%emt 0:00:30]} cxd4 {[%emt 0:00:30]} 9. exd4 {[%emt 0:00:30]} e6 {[%emt 0:00:30]} 10. O-O {[%emt 0:00:30]} Bd6 {[%emt 0:00:30]} 11. Re1 {[%emt 0:00:30]} O-O {[%emt 0:00:30]} 12. h3 {[%emt 0:00:30]} Bf5 {[%emt 0:00:30]} 13. Rc1 {[%emt 0:00:30]} Qe7 {[%emt 0:00:30]} 14. b4 {[%emt 0:00:30]} Bf4 {[%emt 0:00:30]} 15. Bd3 {[%emt 0:00:30]} Ne4 {[%emt 0:00:30]} 16. Ra1 {[%emt 0:00:30]} Nxd2 {[%emt 0:00:30]} 17. Bxf5 {[%emt 0:00:30]} Nc4 {[%emt 0:00:30]} 18. Rb1 {[%emt 0:00:30]} Na7 {[%emt 0:00:30]} 19. Bd3 {[%emt 0:00:30]} Nb5 {[%emt 0:00:30]} 20. a4 {[%emt 0:00:30]} Nxb2 {[%emt 0:00:30]} 21. Rxb2 {[%emt 0:00:30]} Nc3 {[%emt 0:00:30]} 22. Qa1 {[%emt 0:00:30]} Bd6 {[%emt 0:00:30]} 23. b5 {[%emt 0:00:30]} axb5 {[%emt 0:00:30]} 24. axb5 {[%emt 0:00:30]} Ra8 {[%emt 0:00:30]} 25. Qc1 {[%emt 0:00:30]} Ba3 {[%emt 0:00:30]} 26. Qa1 {[%emt 0:00:30]} Bxb2 {[%emt 0:00:30]} 27. Qxb2 {[%emt 0:00:30]} Qa3 {[%emt 0:00:30]} 28. Qxa3 {[%emt 0:00:30]} Rxa3 {[%emt 0:00:30]} 29. Ne5 {[%emt 0:00:30]} Rd8 {[%emt 0:00:30]} 30. Re3 {[%emt 0:00:30]} f6 {[%emt 0:00:30]} 31. Nf3 {[%emt 0:00:30]} Kf7 {[%emt 0:00:30]} 32. b6 {[%emt 0:00:30]} h6 {[%emt 0:00:30]} 33. Nh4 {[%emt 0:00:30]} g5 {[%emt 0:00:30]} 34. Nf3 {[%emt 0:00:30]} Rd6 {[%emt 0:00:30]} 35. h4 {[%emt 0:00:30]} Rxb6 {[%emt 0:00:30]} 36. h5 {[%emt 0:00:30]} Ke7 {[%emt 0:00:30]} 37. Nd2 {[%emt 0:00:30]} Nb5 {[%emt 0:00:30]} 38. Nb3 {[%emt 0:00:30]} Ra2 {[%emt 0:00:30]} 0-1

[Event "1st Henriquez Urena Memorial 2022"]
[Site "Santo Domingo"]
[Date "2022.09.16"]
[Round "1.4"]
[White "Cuenca Jimenez, Jose Fernando"]
[Black "Lugo Matos, Richards Reynier"]
[Result "1-0"]
[ECO "E71"]
[WhiteElo "2553"]
[BlackElo "2157"]
[Annotator "ChessBase"]
[PlyCount "73"]
[EventDate "2022.09.16"]
[EventType "swiss"]
[EventCountry "DOM"]
[SourceTitle "playchess.com"]
[Source "ChessBase"]
[SourceQuality "1"]
[TimeControl "5400+30"]

1. d4 {[%emt 0:00:30]} Nf6 {[%emt 1:31:00]} 2. c4 {[%emt 0:00:30]} g6 {[%emt 0:00:30]} 3. Nc3 {[%emt 0:00:30]} Bg7 {[%emt 0:00:30]} 4. e4 {[%emt 0:00:30]} d6 {[%emt 0:00:30]} 5. h3 {[%emt 0:00:30]} O-O {[%emt 0:00:30]} 6. Be3 {[%emt 0:00:30]} Na6 {[%emt 0:00:30]} 7. g4 {[%emt 0:00:30]} e5 {[%emt 0:00:30]} 8. d5 {[%emt 0:00:30]} Nc5 {[%emt 0:00:30]} 9. f3 {[%emt 0:00:30]} a5 {[%emt 0:00:30]} 10. Qd2 {[%emt 0:00:30]} Nfd7 {[%emt 0:00:30]} 11. h4 {[%emt 0:00:30]} f5 {[%emt 0:00:30]} 12. gxf5 {[%emt 0:00:30]} gxf5 {[%emt 0:00:30]} 13. exf5 {[%emt 0:00:30]} Rxf5 {[%emt 0:00:30]} 14. h5 {[%emt 0:00:30]} e4 {[%emt 0:00:00]} 15. h6 {[%emt 0:22:51]} Bxc3 {[%emt 0:00:00]} 16. Qxc3 {[%emt 0:01:32]} Qf6 {[%emt 0:00:00]} 17. Qxf6 {[%emt 0:09:04]} Rxf6 {[%emt 0:00:00]} 18. fxe4 {[%emt 0:09:43]} Nxe4 {[%emt 0:00:00]} 19. Rh4 {[%emt 0:08:43]} Ndc5 {[%emt 0:00:00]} 20. O-O-O {[%emt 0:01:28]} Nf2 {[%emt 0:00:00]} 21. Bd4 {[%emt 0:16:07]} Rf7 {[%emt 0:00:00]} 22. Rd2 {[%emt 0:07:48]} Nce4 {[%emt 0:00:00]} 23. Rc2 {[%emt 0:00:21]} Bd7 {[%emt 0:00:00]} 24. Be2 {[%emt 0:02:19]} Raf8 {[%emt 0:00:50]} 25. b3 {[%emt 0:02:18]} a4 {[%emt 0:00:01]} 26. Kb2 {[%emt 0:05:39]} Rf4 {[%emt 0:01:27]} 27. Rh2 {[%emt 0:02:05]} R8f5 {[%emt 0:01:28]} 28. Be3 {[%emt 0:01:23]} Nc5 {[%emt 0:00:48]} 29. Bxf4 {[%emt 0:01:03]} Rxf4 {[%emt 0:00:25]} 30. Rc3 {[%emt 0:00:39]} axb3 {[%emt 0:00:39]} 31. axb3 {[%emt 0:00:08]} Nfe4 {[%emt 0:01:05]} 32. Rg2+ {[%emt 0:00:50]} Kf8 {[%emt 0:00:07]} 33. Rf3 {[%emt 0:00:11]} Rxf3 {[%emt 0:00:44]} 34. Nxf3 {[%emt 0:00:06]} Nf6 {[%emt 0:00:43]} 35. Rg7 {[%emt 0:01:14]} c6 {[%emt 0:00:59]} 36. Ng5 {[%emt 0:00:15]} Be8 {[%emt 0:01:06]} 37. b4 {[%emt 0:00:46]} 1-0

[Event "1st Henriquez Urena Memorial 2022"]
[Site "Santo Domingo"]
[Date "2022.09.16"]
[Round "1.5"]
[White "Mendez Ramirez, Victor"]
[Black "Leon Hoyos, Manuel"]
[Result "0-1"]
[ECO "A30"]
[WhiteElo "2153"]
[BlackElo "2491"]
[Annotator "TA"]
[PlyCount "94"]
[EventDate "2022.09.16"]
[EventType "swiss"]
[EventCountry "DOM"]
[SourceTitle "playchess.com"]
[Source "ChessBase"]
[SourceQuality "1"]
[TimeControl "5400+30"]

{[%evp 9,94,26,17,12,5,-36,-6,-29,-27,-28,-18,-37,-32,-29,-35,-45,-43,-19,-27,-33,0,0,0,0,0,0,13,-27,60,58,58,58,41,52,43,46,60,45,65,51,59,0,5,0,0,0,22,4,33,-18,-29,-30,-10,-86,-86,-86,-81,-77,-52,-200,-208,-196,-202,-250,-161,-161,0,-241,-96,-91,0,0,0,-83,0,-373,-360,-695,-688,-1066,-1047,-1022,-1018,-29996,-29997,-29997,-29998]} 1. c4 {[%emt 0:00:30][%cal Bc2c4,Bc4b5,Bb5b6][%mdl 32]} c5 {[%emt 0:00:30]} 2. g3 {[%emt 0:00:30]} g6 {[%emt 0:00:30]} 3. d4 {[%emt 0:00:30]} Bg7 {[%emt 0:00:30]} 4. d5 {[%emt 0:00:30]} b5 {[%emt 0:00:30]} 5. cxb5 {[%emt 0:00:30]} a6 {[%emt 0:00:30]} 6. b6 {[%emt 0:00:30] A30: Symmetrical English: Double Fianchetto and Hedgehog.} d6 {[%emt 0:00:30] [#]} 7. Qb3 $146 {[%emt 0:00:30] aiming for b7.} ({Predecessor:} 7. Bg2 Qxb6 8. Nc3 Nf6 9. Nf3 a5 10. O-O O-O 11. Re1 Nbd7 12. h3 Ne8 13. Qc2 {1-0 (44) Ruperez,M (2125)-Villar Reymundo,J (2131) Barcelona 2021}) 7... Bb7 {[%emt 0:00:30][%mdl 1024] Black has compensation.} 8. Na3 {[%emt 0:00:30] The position is equal.} Nf6 {[%emt 0:00:30]} 9. Bg2 {[%emt 0:00:30]} a5 {[%emt 0:00:30]} 10. e4 {[%emt 0:00:30]} Nbd7 {[%emt 0:00:30]} 11. Ne2 {[%emt 0:00:30]} Ba6 {[%emt 0:00:30]} 12. Nc4 {[%emt 0:00:30]} a4 {[%emt 0:00:30]} 13. Qxa4 {[%emt 0:00:30][%cal Ob6b7]} O-O {[%emt 0:00:30]} 14. Qc2 {[%emt 0:00:30]} Nxb6 {[%emt 0:00:30]} (14... Ng4 {is interesting.} 15. b7 Ra7 16. O-O Rxb7 17. Rb1 Rb4) 15. Ne3 {[%emt 0:31:42]} Ne8 {[%emt 0:48:32]} 16. O-O {[%emt 0:08:26]} Nc7 {[%emt 0:02:22]} 17. Re1 {[%emt 0:06:44]} Nb5 {[%emt 0:05:07]} 18. Qd1 {[%emt 0:09:52]} Qd7 {[%emt 0:36:29]} ({Don't do} 18... Nd4 19. Nxd4 Bxd4 20. Rb1 $14) ({Black should play} 18... Na3 $1 $11) 19. a4 $1 $14 {[%emt 0:04:36]} Nc7 {[%emt 0:00:00][%cal Ob6a4]} 20. a5 {[%emt 0:00:09]} Nc4 {[%emt 0:00:00]} 21. Nxc4 {[%emt 0:01:35]} Bxc4 {[%emt 0:00:00]} 22. Qc2 {[%emt 0:01:06]} Ba6 {[%emt 0:00:00]} 23. Nc3 {[%emt 0:00:22]} Ra7 {[%emt 0:00:00]} 24. Bd2 {[%emt 0:04:04]} Rb8 {[%emt 0:00:00]} 25. f4 {[%emt 0:06:56]} (25. Rab1 $14) 25... Bc4 {[%emt 0:00:00]} 26. Ra3 {[%emt 0:01:51]} Rab7 {[%emt 0:00:00]} 27. Bc1 {[%emt 0:00:11]} Rb4 {[%emt 0:00:00]} 28. Kh1 {[%emt 0:09:04]} e6 {[%emt 0:00:00]} 29. Qd1 {[%emt 0:06:51]} (29. dxe6 $14 fxe6 30. e5) 29... exd5 $11 {[%emt 0:00:00]} 30. exd5 {[%emt 0:01:52]} h5 {[%emt 0:00:37]} 31. Na4 {[%emt 0:02:05]} (31. Qc2 $11) 31... Bb3 $1 $17 {[%emt 0:02:51] Black is more active.} 32. Rxb3 {[%emt 0:00:41]} Rxb3 {[%emt 0:00:02]} 33. Nb6 {[%emt 0:00:01]} Qb5 {[%emt 0:00:16]} 34. Bf1 {[%emt 0:00:32] Against Rd3} ({Don't play} 34. Re7 Rd3 35. Qe2 Rd4 $17) (34. f5 $1 $15) 34... Qxa5 $19 {[%emt 0:00:10]} 35. Nc4 {[%emt 0:00:54]} Qa8 {[%emt 0:03:01]} 36. Bg2 {[%emt 0:00:31]} Qa6 {[%emt 0:00:29]} 37. Bf1 {[%emt 0:00:37][%cal Of4f5]} Qa8 {[%emt 0:00:47]} (37... R3b4 $142 $1 {[%cal Rb4c4]} 38. Bd2 Ra4) 38. Bg2 $1 {[%emt 0:00:32]} Ne8 {[%emt 0:00:26]} ({Worse is} 38... Qa6 39. Bf1) (38... R3b4 $1 $19 {[%cal Rb4c4] and Black stays clearly on top.} 39. Nxd6 Qa6) 39. f5 $17 {[%emt 0:00:10] [#]} R3b4 {[%emt 0:00:10]} ({Better is} 39... g5 $1 $17 {...Qa4 is the strong threat.} 40. Qxh5 Nf6 41. Qxg5 Re8) 40. fxg6 $11 {[%emt 0:01:18]} fxg6 {[%emt 0:00:04]} 41. Qe2 {[%emt 0:00:20] [#]} (41. Qd3 $11 {remains equal.}) 41... Kh8 {[%emt 0:01:01]} (41... Kh7 $1 $17 42. Bg5 Nf6 43. Bxf6 Bxf6) 42. Be4 $2 {[%emt 0:00:46][%mdl 8192]} (42. Qd3 $11 {and White has nothing to worry.}) 42... Nf6 $19 {[%emt 0:00:06][%cal Be8f6,Bf6e4,Be4f2,Bf2h3][%mdl 32] Hoping for ...Re8.} 43. Qc2 $2 {[%emt 0:00:32]} (43. Bd2 Re8 44. Qd3 Nxe4 45. Rxe4 Rxe4 46. Qxe4 Qa1+ 47. Kg2 Rxc4 48. Qxc4 Qxb2 49. Qc1) 43... Re8 {[%emt 0:00:35]} 44. Bd2 {[%emt 0:00:17]} Nxe4 {[%emt 0:00:29]} 45. Bxb4 {[%emt 0:00:49]} Qxd5 {[%emt 0:00:05] ( -> ...Nf2+)} 46. Ne3 {[%emt 0:00:26]} Nf2+ {[%emt 0:00:16]} 47. Kg1 {[%emt 0:00:25]} Nh3+ {[%emt 0:00:02] Weighted Error Value: White=0.59/Black=0.24 (precise)} 0-1

[Event "1st Henriquez Urena Memorial 2022"]
[Site "Santo Domingo"]
[Date "2022.09.16"]
[Round "1.6"]
[White "Araujo Sanchez, Josue"]
[Black "Subervi, Jonathan Sigfredo"]
[Result "1-0"]
[ECO "C54"]
[WhiteElo "2281"]
[BlackElo "2124"]
[Annotator "TA"]
[PlyCount "81"]
[EventDate "2022.09.16"]
[EventType "swiss"]
[EventCountry "DOM"]
[SourceTitle "playchess.com"]
[Source "ChessBase"]
[SourceQuality "1"]
[TimeControl "5400+30"]

{[%evp 12,81,35,9,31,8,46,35,46,39,41,52,62,75,95,47,50,49,51,51,108,146,147,134,170,168,171,172,177,175,171,164,338,332,494,478,483,471,477,468,572,466,474,472,470,454,663,662,626,538,504,348,449,-367,1128,406,527,552,702,710,670,670,650,634,839,811,994,961,2917,1339,894,894]} 1. e4 {[%emt 1:31:00]} e5 2. Nf3 Nc6 3. Bc4 Nf6 4. d3 Bc5 5. O-O d6 6. c3 h6 7. Re1 O-O {C54: Giuoco Piano: 4 c3 Nf6, main lines with 5 d4 and 5 d3.} 8. Nbd2 Be6 9. b4 Bb6 {White is slightly better.} 10. Bxe6 fxe6 {[%emt 1:35:30]} 11. Nc4 {[%emt 0:00:00]} Ne7 {[%emt 0:00:30]} 12. a4 {[%emt 0:00:00] [#] aiming for a5. White is more active.} c6 {[%emt 0:00:00]} 13. Nxb6 {[%emt 0:00:00]} (13. b5 $16) 13... axb6 $14 {[%emt 0:01:00] [#]} 14. Qb3 $146 {[%emt 0:06:30]} ({Predecessor:} 14. d4 exd4 15. Nxd4 Qd7 16. f3 e5 17. Nb3 Ng6 18. Be3 Qc7 19. Qc2 Nh5 20. c4 {1-0 (40) Graif,W (2333)-Ganesan,M Dulles 2022}) 14... Qd7 {[%emt 0:00:30]} 15. Be3 {[%emt 0:00:30]} Ng6 {[%emt 0:00:00]} ({Better is} 15... b5 $1 $14) 16. Bxb6 $16 {[%emt 0:00:00]} Nf4 {[%emt 0:00:00]} 17. Be3 {[%emt 0:00:00]} N6h5 {[%emt 0:00:00][%cal Of4h3]} 18. Qd1 {[%emt 0:00:00]} Qf7 {[%emt 0:00:00]} 19. Ra2 {[%emt 0:00:00]} Qg6 {[%emt 0:00:00][%csl Gf4][%cal Rg6g2] [#]} 20. Nh4 {[%emt 0:00:00]} Qf6 {[%emt 0:00:00]} 21. g3 {[%emt 0:00:00]} g6 $2 {[%emt 0:00:00]} (21... Nh3+ {was worth a try.} 22. Kh1 N5f4) 22. Qg4 $18 {[%emt 0:00:00]} (22. gxf4 exf4 23. Qg4 fxe3 24. fxe3 (24. Qxg6+ Qxg6+ 25. Nxg6 Rxa4 $15) 24... Kh7 $14) 22... Nxd3 {[%emt 0:03:29]} (22... Qg5 {keeps fighting.} 23. f3 Nf6 24. gxf4 exf4 25. Qxg5 (25. Bxf4 Nxg4 26. Bxg5 hxg5 $16) 25... hxg5 26. Nxg6 Rf7) 23. Rd1 {[%emt 0:00:00]} Ndf4 {[%emt 0:00:26]} 24. gxf4 {[%emt 0:00:00]} exf4 {[%emt 0:00:19]} 25. Bc1 {[%emt 0:00:00]} e5 {[%emt 0:00:34]} 26. Qxg6+ {[%emt 0:00:00]} Qxg6+ {[%emt 0:00:32]} 27. Nxg6 {[%emt 0:00:00]} Rfd8 {[%emt 0:00:38]} 28. Rad2 {[%emt 0:00:00]} Nf6 {[%emt 0:00:30]} (28... Kh7 $142 29. Nh4 (29. Rxd6 Rg8 $18) 29... Rxa4 30. Rxd6 Rxd6 31. Rxd6 Ra1) 29. f3 {[%emt 0:00:00]} Kh7 {[%emt 0:00:01]} 30. Ne7 {[%emt 0:00:00]} Rxa4 {[%emt 0:00:55]} 31. Rd3 {[%emt 0:08:00]} d5 32. Rxd5 {[%emt 0:00:00][%mdl 8192]} Rd7 $4 {[%emt 0:01:36][%mdl 8192]} (32... cxd5 $19 33. Bb2 Ra2) 33. Rd6 (33. Rxd7 $142 Nxd7 34. Rxd7) 33... Rxd6 {[%emt 0:00:00]} 34. Rxd6 {[%emt 0:00:00] White is clearly winning.} Ra1 {[%emt 0:00:00]} 35. Rxf6 {[%emt 0:00:00]} Rxc1+ {[%emt 0:00:00][%mdl 4096] Endgame KRN-KR} 36. Kg2 {[%emt 0:00:00]} Kg7 {[%emt 0:00:00]} 37. Rd6 {[%emt 0:00:00]} ({Less strong is} 37. Rg6+ Kf7 $16) 37... Rc2+ {[%emt 0:00:05]} 38. Kh3 {[%emt 0:00:00]} Rxc3 {[%emt 0:00:08]} 39. Kg4 {[%emt 0:00:00] Threatens to win with Kf5.} h5+ {[%emt 0:00:07]} 40. Kg5 {[%emt 0:00:00]} (40. Kf5 $142 Rxf3 41. Rd7) 40... Kf7 {[%emt 0:00:09]} 41. Ng6 {[%emt 0:00:00] Weighted Error Value: White=0.60/Black=0.48} 1-0

[Event "1st Henriquez Urena Memorial 2022"]
[Site "Santo Domingo"]
[Date "2022.09.16"]
[Round "1.7"]
[White "Martinez Castillo, Julio Antonio"]
[Black "Guzman, Christopher"]
[Result "0-1"]
[ECO "C00"]
[WhiteElo "2122"]
[BlackElo "2252"]
[Annotator "TA"]
[PlyCount "68"]
[EventDate "2022.09.16"]
[EventType "swiss"]
[EventCountry "DOM"]
[SourceTitle "playchess.com"]
[Source "ChessBase"]
[SourceQuality "1"]
[TimeControl "5400+30"]

{[%evp 27,68,-28,0,-30,0,-19,-35,-394,-392,-379,-358,-410,-412,-407,-394,-403,-421,-399,-399,-402,-413,-522,-503,-544,0,-475,0,-549,-551,-539,-534,-575,-528,-632,-634,-891,-879,-1319,-1272,-1303,-1292,-1156,-919]} 1. g3 {[%emt 0:00:30]} d5 {[%emt 1:31:00]} 2. Bg2 {[%emt 0:00:30]} Nf6 {[%emt 0:00:30]} 3. Nf3 {[%emt 0:00:30]} e6 {[%emt 0:00:30]} 4. O-O {[%emt 0:00:30]} Be7 {[%emt 0:00:30]} 5. d3 {[%emt 0:00:30]} O-O {[%emt 0:00:30]} 6. Nbd2 {[%emt 0:00:30]} c5 {[%emt 0:00:30]} 7. e4 {[%emt 0:00:30]} Nc6 {[%emt 0:00:30]} 8. Re1 {[%emt 0:00:30]} b5 {[%emt 0:00:30]} 9. e5 {[%emt 0:00:30]} Nd7 {[%emt 0:00:30]} 10. Nf1 {[%emt 0:00:30]} a5 {[%emt 0:00:30]} 11. h4 {[%emt 0:00:30]} b4 {[%emt 0:00:30]} 12. Bf4 {[%emt 0:00:30]} a4 {[%emt 0:00:30]} 13. a3 {[%emt 0:00:30]} bxa3 {[%emt 0:00:30]} 14. bxa3 {[%emt 0:00:30]} Ba6 {[%emt 0:00:30] 14...Rb8 is the hot move.} 15. N1h2 {[%emt 0:00:30] C00: French: Unusual White 2nd moves.} Re8 {[%emt 0:00:30]} 16. Ng5 {[%emt 0:00:30]} h6 {[%emt 0:00:30]} 17. Qh5 {[%emt 0:00:30][%mdl 8192] [#]} hxg5 $19 {[%emt 0:00:30]} 18. hxg5 {[%emt 0:00:30] [#]} Nd4 $146 {[%emt 0:00:30]} ({Avoid the trap} 18... g6 $2 19. Qh4 Nd4 20. c4 $19) ({Predecessor:} 18... Nf8 19. Ng4 Ng6 20. Bf3 Nd4 21. Kg2 c4 22. Rh1 Bc5 23. Nf6+ Kf8 24. Nxe8 Kxe8 {0-1 (39) Zhukov,M (1990)-Filali,R (2252) Chess.com INT 2021}) 19. Ng4 {[%emt 0:00:30]} g6 {[%emt 0:00:30]} 20. Qh4 {[%emt 0:00:30]} Nf5 {[%emt 0:00:30]} ({Stronger than} 20... Nxc2 21. Nh6+ Kg7 22. Nxf7 $11) 21. Nh6+ {[%emt 0:00:30]} Nxh6 {[%emt 0:00:30]} 22. Qxh6 {[%emt 0:00:30]} Bf8 {[%emt 0:00:30]} 23. Qh4 {[%emt 0:00:30]} Rb8 {[%emt 0:00:30]} 24. c4 {[%emt 0:00:30]} Nb6 {[%emt 0:00:30]} 25. Rad1 {[%emt 0:00:30]} Nd7 {[%emt 0:00:00]} 26. Ra1 $1 {[%emt 0:19:34]} Nb6 {[%emt 0:00:00]} 27. Rad1 {[%emt 0:03:03]} dxc4 {[%emt 0:00:00] Black is clearly winning.} 28. dxc4 {[%emt 0:03:17]} Qc7 {[%emt 0:00:00]} 29. Be4 {[%emt 0:13:32]} Bb7 {[%emt 0:00:00]} 30. Bc2 {[%emt 0:13:09]} Rbd8 {[%emt 0:00:00]} 31. Rd6 {[%emt 0:10:02]} Nxc4 {[%emt 0:00:00]} ({Not} 31... Bxd6 32. exd6 Qc6 33. Be4 Nxc4 34. Bxc6 Bxc6 35. Bc1 $16) 32. Red1 {[%emt 0:04:41]} Nxd6 {[%emt 0:00:00]} 33. exd6 {[%emt 0:00:24]} Qc6 {[%emt 0:00:00][%csl Gb7][%cal Rc6g2] [#]} 34. Qh3 {[%emt 0:00:34] Prevents Qg2+.} Rxd6 {[%emt 0:00:00] White did not feel at home in the position after the opening.  Weighted Error Value: White=0.98/Black=0.54} 0-1